fUST/lending_fUST_20250520
["ID","MTS","AMOUNT","RATE_DAILY","PERIOD"]
[361710009,1747711853132,-430.0,0.00017808,2]
[361710010,1747711853143,-430.0,0.00017808,2]
[361710011,1747711853153,-430.0,0.00017808,2]
[361710012,1747711853163,-546.95,0.00017808,2]
[361710013,1747711853174,-440.89,0.00017808,2]
[361710014,1747711853185,-430.0,0.00017808,2]
[361710015,1747711853196,-772.82,0.00017808,2]
[361710016,1747711853207,-430.0,0.00017808,2]
[361710017,1747711853219,-430.0,0.00017808,2]
[361710018,1747711853231,-187.82564367,0.00017808,2]
[361710019,1747711853241,-1828.95,0.00017808,2]
[361710020,1747711853250,-430.0,0.00017808,2]
[361710021,1747711853260,-430.0,0.00017808,2]
[361710022,1747711853269,-689.94,0.00017808,2]
[361710023,1747711853279,-430.0,0.00017808,2]
[361710024,1747711853288,-488.86,0.00017808,2]
[361710025,1747711853298,-430.0,0.00017808,2]
[361710026,1747711853309,-430.0,0.00017808,2]
[361710027,1747711853318,-1049.69,0.00017808,2]
[361710028,1747711853329,-749.3,0.00017808,2]
[361710029,1747711853340,-430.0,0.00017808,2]
[361710030,1747711853350,-1142.23,0.00017808,2]
[361710031,1747711853359,-430.0,0.00017808,2]
[361710032,1747711853370,-609.45,0.00017808,2]
[361710033,1747711853381,-430.0,0.00017808,2]
[361710034,1747711853392,-760.07,0.00017808,2]
[361710035,1747711853402,-1018.12,0.00017808,2]
[361710036,1747711853412,-430.0,0.00017808,2]
[361710037,1747711853422,-585.86,0.00017808,2]
[361710038,1747711853432,-430.0,0.00017808,2]
[361710039,1747711853443,-2263.57,0.00017808,2]
[361710040,1747711853453,-1646.69,0.00017808,2]
[361710041,1747711853463,-1451.1,0.00017808,2]
[361710042,1747711853473,-430.0,0.00017808,2]
[361710043,1747711853483,-962.58,0.00017808,2]
[361710044,1747711853493,-556.65764968,0.00017808,2]
[361710045,1747711853503,-450.57,0.00017808,2]
[361710046,1747711853516,-430.0,0.00017808,2]
[361710047,1747711853526,-430.0,0.00017808,2]
[361710048,1747711853536,-430.0,0.00017808,2]
[361710049,1747711853545,-991.78,0.00017808,2]
[361710050,1747711853556,-876.43,0.00017808,2]
[361710051,1747711853568,-1162.29,0.00017808,2]
[361710052,1747711853578,-430.0,0.00017808,2]
[361710053,1747711853587,-225.82412333,0.00017808,2]
[361710054,1747711853598,-1258.54,0.00017808,2]
[361710055,1747711853608,-988.85,0.00017808,2]
[361710056,1747711853618,-691.34,0.00017808,2]
[361710057,1747711853629,-778.27,0.00017808,2]
[361710058,1747711853638,-693.39,0.00017808,2]
[361710059,1747711853647,-1147.48,0.00017808,2]
[361710060,1747711853657,-787.19,0.00017808,2]
[361710061,1747711853668,-430.0,0.00017808,2]
[361710062,1747711853678,-430.0,0.00017808,2]
[361710063,1747711853687,-430.0,0.00017808,2]
[361710064,1747711853697,-430.0,0.00017808,2]
[361710065,1747711853706,-741.22,0.00017808,2]
[361710066,1747711853715,-430.0,0.00017808,2]
[361710067,1747711853724,-1069.06,0.00017808,2]
[361710068,1747711853733,-760.09,0.00017808,2]
[361710069,1747711853743,-430.0,0.00017808,2]
[361710070,1747711853754,-430.0,0.00017808,2]
[361710071,1747711853765,-644.9,0.00017808,2]
[361710072,1747711853775,-430.0,0.00017808,2]
[361710073,1747711853786,-430.0,0.00017808,2]
[361710074,1747711853795,-430.0,0.00017808,2]
[361710075,1747711853804,-430.0,0.00017808,2]
[361710076,1747711853814,-517.02,0.00017808,2]
[361710077,1747711853823,-439.45,0.00017808,2]
[361710078,1747711853833,-430.0,0.00017808,2]
[361710079,1747711853842,-430.0,0.00017808,2]
[361710080,1747711853852,-430.0,0.00017808,2]
[361710081,1747711853862,-430.0,0.00017808,2]
[361710082,1747711853873,-430.0,0.00017808,2]
[361710083,1747711853884,-567.57,0.00017808,2]
[361710084,1747711853894,-593.15,0.00017808,2]
[361710085,1747711853905,-568.42,0.00017808,2]
[361710086,1747711853915,-430.0,0.00017808,2]
[361710087,1747711853925,-813.32,0.00017808,2]
[361710088,1747711853935,-458.19,0.00017808,2]
[361710089,1747711853945,-690.86,0.00017808,2]
[361710090,1747711853955,-644.15,0.00017808,2]
[361710091,1747711853964,-696.09,0.00017808,2]
[361710092,1747711853974,-999.97,0.00017808,2]
[361710093,1747711853984,-429.86794015,0.00017808,2]
[361710094,1747711853994,-430.0,0.00017808,2]
[361710095,1747711854005,-473.12,0.00017808,2]
[361710096,1747711854015,-430.0,0.00017808,2]
[361710097,1747711854025,-430.0,0.00017808,2]
[361710098,1747711854036,-430.0,0.00017808,2]
[361710099,1747711854048,-701.38,0.00017808,2]
[361710100,1747711854058,-430.0,0.00017808,2]
[361710101,1747711854068,-430.0,0.00017808,2]
[361710102,1747711854079,-1644.88,0.00017808,2]
[361710103,1747711854090,-5108.71,0.00017808,2]
[361710104,1747711854099,-1378.94,0.00017808,2]
[361710105,1747711854109,-430.0,0.00017808,2]
[361710106,1747711854119,-2486.65,0.00017808,2]
[361710107,1747711854131,-430.0,0.00017808,2]
[361710108,1747711854142,-1088.71,0.00017808,2]
[361710109,1747711854152,-612.49,0.00017808,2]
[361710110,1747711854163,-1531.24,0.00017808,2]
[361710111,1747711854174,-430.0,0.00017808,2]
[361710112,1747711854184,-430.0,0.00017808,2]
[361710113,1747711854195,-607.09,0.00017808,2]
[361710114,1747711854206,-430.0,0.00017808,2]
[361710115,1747711854217,-8336.56,0.00017808,2]
[361710116,1747711854228,-430.0,0.00017808,2]
[361710117,1747711854238,-430.0,0.00017808,2]
[361710118,1747711854249,-1900.16,0.00017808,2]
[361710119,1747711854258,-1589.93,0.00017808,2]
[361710120,1747711854269,-2958.13,0.00017808,2]
[361710121,1747711854282,-2299.91,0.00017808,2]
[361710122,1747711854293,-430.0,0.00017808,2]
[361710123,1747711854303,-523.52,0.00017808,2]
[361710124,1747711854312,-430.0,0.00017808,2]
[361710125,1747711854322,-579.3,0.00017808,2]
[361710126,1747711854332,-456.86,0.00017808,2]
[361710127,1747711854342,-560.64,0.00017808,2]
[361710128,1747711854353,-957.38,0.00017808,2]
[361710129,1747711854363,-447.77,0.00017808,2]
[361710130,1747711854422,-501.14,0.00017808,2]
[361710131,1747711854431,-651.31,0.00017808,2]
[361710132,1747711854441,-1623.99,0.00017808,2]
[361710133,1747711854451,-1339.36,0.00017808,2]
[361710134,1747711854460,-931.73,0.00017808,2]
[361710135,1747711854470,-430.0,0.00017808,2]
[361710136,1747711854480,-2393.49,0.00017808,2]
[361710137,1747711854490,-567.85525176,0.00017808,2]
[361710138,1747711854499,-1566.45,0.00017808,2]
[361710139,1747711854508,-430.0,0.00017808,2]
[361710140,1747711854517,-597.79,0.00017808,2]
[361710141,1747711854527,-526.68,0.00017808,2]
[361710142,1747711854536,-430.0,0.00017808,2]
[361710143,1747711854545,-3279.27,0.00017808,2]
[361710144,1747711854555,-430.0,0.00017808,2]
[361710145,1747711854565,-1025.15,0.00017808,2]
[361710146,1747711854575,-733.78,0.00017808,2]
[361710147,1747711854584,-1551.57,0.00017808,2]
[361710148,1747711854594,-822.06,0.00017808,2]
[361710149,1747711854602,-430.0,0.00017808,2]
[361710150,1747711854612,-4382.81,0.00017808,2]
[361710151,1747711854622,-1200.11,0.00017808,2]
[361710152,1747711854631,-430.0,0.00017808,2]
[361710153,1747711854640,-11494.75,0.00017808,2]
[361710154,1747711854650,-430.0,0.00017808,2]
[361710155,1747711854660,-598.5,0.00017808,2]
[361710156,1747711854670,-430.0,0.00017808,2]
[361710157,1747711854680,-551.67,0.00017808,2]
[361710158,1747711854690,-2259.3,0.00017808,2]
[361710159,1747711854700,-2347.98,0.00017808,2]
[361710160,1747711854710,-2035.58,0.00017808,2]
[361710161,1747711854720,-532.11,0.00017808,2]
[361710162,1747711854730,-430.0,0.00017808,2]
[361710163,1747711854740,-498.47,0.00017808,2]
[361710164,1747711854749,-1125.92,0.00017808,2]
[361710165,1747711854759,-2097.2,0.00017808,2]
[361710166,1747711854769,-752.17,0.00017808,2]
[361710167,1747711854779,-430.0,0.00017808,2]
[361710168,1747711854789,-2113.16,0.00017808,2]
[361710169,1747711854799,-2923.93,0.00017808,2]
[361710170,1747711854809,-2279.56,0.00017808,2]
[361710171,1747711854818,-1336.73,0.00017808,2]
[361710172,1747711854827,-759.08,0.00017808,2]
[361710173,1747711854837,-3777.83,0.00017808,2]
[361710174,1747711854847,-688.16,0.00017808,2]
[361710175,1747711854857,-1347.23,0.00017808,2]
[361710176,1747711854866,-3144.53,0.00017808,2]
[361710177,1747711854876,-1348.52,0.00017808,2]
[361710178,1747711854886,-1068.66,0.00017808,2]
[361710179,1747711854896,-560.96,0.00017808,2]
[361710180,1747711854906,-1984.27,0.00017808,2]
[361710181,1747711854916,-11069.63,0.00017808,2]
[361710182,1747711854926,-2229.9,0.00017808,2]
[361710183,1747711854935,-1488.84,0.00017808,2]
[361710184,1747711854945,-580.11,0.00017808,2]
[361710185,1747711854955,-430.0,0.00017808,2]
[361710186,1747711854965,-430.0,0.00017808,2]
[361710187,1747711854975,-288.02611955,0.00017808,2]
[361710188,1747711854984,-743.82,0.00017808,2]
[361710189,1747711854994,-430.0,0.00017808,2]
[361710190,1747711855005,-858.91,0.00017808,2]
[361710191,1747711855015,-1501.41,0.00017808,2]
[361710192,1747711855025,-430.0,0.00017808,2]
[361710193,1747711855035,-430.0,0.00017808,2]
[361710194,1747711855045,-430.0,0.00017808,2]
[361710195,1747711855054,-1744.35,0.00017808,2]
[361710196,1747711855064,-3384.45,0.00017808,2]
[361710197,1747711855074,-1000.0,0.00017821,2]
[361710198,1747711855083,-1000.0,0.00017821,2]
[361710199,1747711855093,-637.57933997,0.00017821,2]
[361710200,1747711855103,-1015.4568153,0.00017821,2]
[361710201,1747711855113,-1000.0,0.00017821,2]
[361710202,1747711855123,-1000.0,0.00017821,2]
[361710203,1747711855135,-1000.0,0.00017821,2]
[361710204,1747711855145,-1000.0,0.00017821,2]
[361710205,1747711855155,-1000.0,0.00017821,2]
[361710206,1747711855165,-1000.0,0.00017821,2]
[361710207,1747711855176,-1000.0,0.00017821,2]
[361710208,1747711855187,-1000.0,0.00017821,2]
[361710209,1747711855197,-358.28914972,0.00017821,2]
[361710210,1747711855207,-1000.0,0.00017821,2]
[361710211,1747711855217,-1000.0,0.00017821,2]
[361710212,1747711855228,-1000.0,0.00017821,2]
[361710213,1747711855238,-500.14267844,0.00017821,2]
[361710214,1747711855248,-1000.0,0.00017821,2]
[361710215,1747711855257,-396.03118149,0.00017821,2]
[361710216,1747711855267,-1000.0,0.00017821,2]
[361710217,1747711855277,-357.984021,0.00017862,2]
[361710218,1747711855287,-357.984025,0.00017862,2]
[361710219,1747711855297,-1000.0,0.00017892,2]
[361710220,1747711855307,-1000.0,0.00017892,2]
[361710221,1747711855318,-1000.0,0.00017892,2]
[361710222,1747711855328,-934.12604693,0.00017892,2]
[361710223,1747711855338,-1000.0,0.00017892,2]
[361710224,1747711855349,-416.99499037,0.00017892,2]
[361710225,1747711855360,-1000.0,0.00017892,2]
[361710226,1747711855370,-1000.0,0.00017892,2]
[361710227,1747711855379,-159.65214396,0.00017892,2]
[361710228,1747711855389,-1000.0,0.00017892,2]
[361710229,1747711855399,-1000.0,0.00017892,2]
[361710230,1747711855408,-1000.0,0.00017892,2]
[361710231,1747711855418,-2000.0,0.00017899,2]
[361710232,1747711855429,-1000.0,0.00017933,2]
[361710233,1747711855439,-1000.0,0.00017933,2]
[361710234,1747711855451,-508.42025294,0.00017933,2]
[361710235,1747711855461,-502.56270759,0.00017954,2]
[361710236,1747711855472,-1000.0,0.00017954,2]
[361710237,1747711855483,-679.37447171,0.00017954,2]
[361710238,1747711855494,-1000.0,0.00017954,2]
[361710239,1747711855504,-1000.0,0.00017954,2]
[361710240,1747711855515,-1000.0,0.00017956,2]
[361710241,1747711855524,-1000.0,0.00017956,2]
[361710242,1747711855536,-1112.63659606,0.0001798,2]
[361710243,1747711855548,-1000.0,0.00017982,2]
[361710244,1747711855559,-1000.0,0.00017982,2]
[361710245,1747711855569,-1000.0,0.00018002,2]
[361710246,1747711855579,-3865.67101959,0.00018003,2]
[361710247,1747711855589,-1000.0,0.00018013,2]
[361710248,1747711855600,-430.0,0.00018082,2]
[361710249,1747711855610,-836.21,0.00018082,2]
[361710250,1747711855620,-430.0,0.00018082,2]
[361710251,1747711855631,-519.31,0.00018082,2]
[361710252,1747711855642,-430.0,0.00018082,2]
[361710253,1747711855653,-430.0,0.00018082,2]
[361710254,1747711855663,-535.99,0.00018082,2]
[361710255,1747711855674,-430.0,0.00018082,2]
[361710256,1747711855684,-430.0,0.00018082,2]
[361710257,1747711855696,-430.0,0.00018082,2]
[361710258,1747711855705,-430.0,0.00018082,2]
[361710259,1747711855716,-430.0,0.00018082,2]
[361710260,1747711855726,-430.0,0.00018082,2]
[361710261,1747711855736,-546.95,0.00018082,2]
[361710262,1747711855746,-440.89,0.00018082,2]
[361710263,1747711855756,-430.0,0.00018082,2]
[361710264,1747711855768,-772.82,0.00018082,2]
[361710265,1747711855779,-430.0,0.00018082,2]
[361710266,1747711855790,-430.0,0.00018082,2]
[361710267,1747711855799,-1828.95,0.00018082,2]
[361710268,1747711855809,-446.10195497,0.00018082,2]
[361710269,1747711855819,-430.0,0.00018082,2]
[361710270,1747711855829,-689.94,0.00018082,2]
[361710271,1747711855838,-518.34457165,0.00018082,2]
[361710272,1747711855848,-488.86,0.00018082,2]
[361710273,1747711855858,-430.0,0.00018082,2]
[361710274,1747711855868,-430.0,0.00018082,2]
[361710275,1747711855879,-1049.69,0.00018082,2]
[361710276,1747711855890,-749.3,0.00018082,2]
[361710277,1747711855902,-430.0,0.00018082,2]
[361710278,1747711855912,-1142.23,0.00018082,2]
[361710279,1747711855922,-430.0,0.00018082,2]
[361710280,1747711855932,-609.45,0.00018082,2]
[361710281,1747711855944,-430.0,0.00018082,2]
[361710282,1747711855954,-760.07,0.00018082,2]
[361710283,1747711855965,-1018.12,0.00018082,2]
[361710284,1747711855975,-430.0,0.00018082,2]
[361710285,1747711855985,-585.86,0.00018082,2]
[361710286,1747711855994,-430.0,0.00018082,2]
[361710287,1747711856004,-2263.57,0.00018082,2]
[361710288,1747711856014,-1646.69,0.00018082,2]
[361710289,1747711856024,-1451.1,0.00018082,2]
[361710290,1747711856035,-430.0,0.00018082,2]
[361710291,1747711856044,-962.58,0.00018082,2]
[361710292,1747711856057,-450.57,0.00018082,2]
[361710293,1747711856068,-430.0,0.00018082,2]
[361710294,1747711856079,-430.0,0.00018082,2]
[361710295,1747711856090,-430.0,0.00018082,2]
[361710296,1747711856100,-991.78,0.00018082,2]
[361710297,1747711856110,-876.43,0.00018082,2]
[361710298,1747711856120,-1162.29,0.00018082,2]
[361710299,1747711856132,-430.0,0.00018082,2]
[361710300,1747711856142,-1258.54,0.00018082,2]
[361710301,1747711856152,-988.85,0.00018082,2]
[361710302,1747711856163,-691.34,0.00018082,2]
[361710303,1747711856173,-778.27,0.00018082,2]
[361710304,1747711856184,-693.39,0.00018082,2]
[361710305,1747711856194,-1147.48,0.00018082,2]
[361710306,1747711856206,-787.19,0.00018082,2]
[361710307,1747711856216,-430.0,0.00018082,2]
[361710308,1747711856226,-430.0,0.00018082,2]
[361710309,1747711856235,-430.0,0.00018082,2]
[361710310,1747711856245,-430.0,0.00018082,2]
[361710311,1747711856255,-741.22,0.00018082,2]
[361710312,1747711856265,-430.0,0.00018082,2]
[361710313,1747711856274,-1069.06,0.00018082,2]
[361710314,1747711856284,-760.09,0.00018082,2]
[361710315,1747711856294,-430.0,0.00018082,2]
[361710316,1747711856304,-430.0,0.00018082,2]
[361710317,1747711856314,-644.9,0.00018082,2]
[361710318,1747711856323,-430.0,0.00018082,2]
[361710319,1747711856333,-430.0,0.00018082,2]
[361710320,1747711856343,-430.0,0.00018082,2]
[361710321,1747711856353,-430.0,0.00018082,2]
[361710322,1747711856363,-517.02,0.00018082,2]
[361710323,1747711856373,-439.45,0.00018082,2]
[361710324,1747711856383,-430.0,0.00018082,2]
[361710325,1747711856394,-430.0,0.00018082,2]
[361710326,1747711856404,-430.0,0.00018082,2]
[361710327,1747711856415,-430.0,0.00018082,2]
[361710328,1747711856425,-430.0,0.00018082,2]
[361710329,1747711856434,-567.57,0.00018082,2]
[361710330,1747711856444,-593.15,0.00018082,2]
[361710331,1747711856455,-568.42,0.00018082,2]
[361710332,1747711856466,-430.0,0.00018082,2]
[361710333,1747711856477,-813.32,0.00018082,2]
[361710334,1747711856487,-458.19,0.00018082,2]
[361710335,1747711856498,-690.86,0.00018082,2]
[361710336,1747711856508,-644.15,0.00018082,2]
[361710337,1747711856519,-696.09,0.00018082,2]
[361710338,1747711856529,-999.97,0.00018082,2]
[361710339,1747711856539,-430.0,0.00018082,2]
[361710340,1747711856549,-473.12,0.00018082,2]
[361710341,1747711856559,-430.0,0.00018082,2]
[361710342,1747711856569,-305.82518055,0.00018082,2]
[361710343,1747711856579,-430.0,0.00018082,2]
[361710344,1747711856590,-701.38,0.00018082,2]
[361710345,1747711856600,-430.0,0.00018082,2]
[361710346,1747711856609,-430.0,0.00018082,2]
[361710347,1747711856619,-1644.88,0.00018082,2]
[361710348,1747711856629,-5108.71,0.00018082,2]
[361710349,1747711856639,-1378.94,0.00018082,2]
[361710350,1747711856649,-430.0,0.00018082,2]
[361710351,1747711856659,-2486.65,0.00018082,2]
[361710352,1747711856668,-430.0,0.00018082,2]
[361710353,1747711856679,-1088.71,0.00018082,2]
[361710354,1747711856689,-300.68009907,0.00018082,2]
[361710355,1747711856895,-311.80990093,0.00018082,2]
[361710356,1747711856906,-1531.24,0.00018082,2]
[361710357,1747711856917,-156.95009907,0.00018082,2]
[361710362,1747712216982,444.44081186,0.00019,30]
[361710402,1747713032328,-308.113158,0.00013699,2]
[361710404,1747713032338,-193.865909,0.00015504,2]
[361710406,1747713032348,-657.0,0.0001596,2]
[361710408,1747713032358,-2047.0,0.00015967,2]
[361710410,1747713032367,-300.0,0.00015967,2]
[361710412,1747713032377,-14768.66385313,0.00015969,2]
[361710415,1747713032394,-10131.33614687,0.00015969,2]
[361710417,1747713032405,-151.0,0.00016428,2]
[361710419,1747713032414,-207.4,0.00016428,2]
[361710421,1747713032424,-85.26385313,0.00016437,2]
[361710423,1747713032435,-171.68074805,0.00016437,2]
[361710425,1747713032445,-430.0,0.00016438,2]
[361710427,1747713032455,-430.0,0.00016438,2]
[361710429,1747713032465,-430.0,0.00016438,2]
[361710431,1747713032478,-430.0,0.00016438,2]
[361710433,1747713032487,-430.0,0.00016438,2]
[361710435,1747713032497,-430.0,0.00016438,2]
[361710437,1747713032507,-702.51,0.00016438,2]
[361710439,1747713032518,-527.22211183,0.00016438,2]
[361710441,1747713032527,-489.7,0.00016438,2]
[361710443,1747713032537,-551.28,0.00016438,2]
[361710445,1747713032549,-430.0,0.00016438,2]
[361710447,1747713032559,-812.8,0.00016438,2]
[361710449,1747713032568,-430.0,0.00016438,2]
[361710451,1747713032577,-577.93761537,0.00016438,2]
[361710453,1747713032587,-430.0,0.00016438,2]
[361710455,1747713032597,-430.0,0.00016438,2]
[361710457,1747713032606,-430.0,0.00016438,2]
[361710459,1747713032616,-430.0,0.00016438,2]
[361710461,1747713032626,-430.0,0.00016438,2]
[361710463,1747713032635,-456.27,0.00016438,2]
[361710465,1747713032645,-430.0,0.00016438,2]
[361710467,1747713032654,-708.31,0.00016438,2]
[361710469,1747713032664,-743.53,0.00016438,2]
[361710471,1747713032676,-430.0,0.00016438,2]
[361710473,1747713032685,-530.76,0.00016438,2]
[361710475,1747713032696,-430.0,0.00016438,2]
[361710477,1747713032706,-430.0,0.00016438,2]
[361710480,1747713032716,-431.7,0.00016438,2]
[361710482,1747713032725,-809.08,0.00016438,2]
[361710483,1747713032734,-549.72,0.00016438,2]
[361710485,1747713032744,-538.38,0.00016438,2]
[361710487,1747713032754,-495.89,0.00016438,2]
[361710489,1747713032764,-430.0,0.00016438,2]
[361710491,1747713032774,-430.0,0.00016438,2]
[361710493,1747713032784,-1603.36,0.00016438,2]
[361710495,1747713032793,-430.0,0.00016438,2]
[361710497,1747713032804,-1166.41,0.00016438,2]
[361710499,1747713032815,-430.0,0.00016438,2]
[361710501,1747713032824,-430.0,0.00016438,2]
[361710503,1747713032834,-430.0,0.00016438,2]
[361710505,1747713032843,-430.0,0.00016438,2]
[361710507,1747713032852,-430.0,0.00016438,2]
[361710509,1747713032862,-430.0,0.00016438,2]
[361710511,1747713032873,-600.97,0.00016438,2]
[361710513,1747713032883,-430.0,0.00016438,2]
[361710514,1747713032892,-823.28,0.00016438,2]
[361710516,1747713032902,-430.0,0.00016438,2]
[361710518,1747713032912,-543.7865027,0.00016438,2]
[361710520,1747713032922,-430.0,0.00016438,2]
[361710522,1747713032932,-430.0,0.00016438,2]
[361710524,1747713032942,-681.83,0.00016438,2]
[361710526,1747713032952,-430.0,0.00016438,2]
[361710528,1747713032961,-491.15,0.00016438,2]
[361710530,1747713032971,-430.0,0.00016438,2]
[361710532,1747713032980,-448.34,0.00016438,2]
[361710534,1747713032990,-620.8,0.00016438,2]
[361710536,1747713033000,-430.0,0.00016438,2]
[361710538,1747713033010,-891.46,0.00016438,2]
[361710540,1747713033019,-525.03,0.00016438,2]
[361710542,1747713033030,-700.44,0.00016438,2]
[361710544,1747713033041,-430.0,0.00016438,2]
[361710546,1747713033052,-816.67,0.00016438,2]
[361710548,1747713033063,-768.87,0.00016438,2]
[361710550,1747713033072,-430.0,0.00016438,2]
[361710552,1747713033082,-557.59,0.00016438,2]
[361710554,1747713033091,-456.81,0.00016438,2]
[361710556,1747713033102,-430.0,0.00016438,2]
[361710558,1747713033112,-430.0,0.00016438,2]
[361710559,1747713033122,-430.0,0.00016438,2]
[361710561,1747713033132,-538.4,0.00016438,2]
[361710563,1747713033142,-516.12,0.00016438,2]
[361710565,1747713033152,-430.0,0.00016438,2]
[361710567,1747713033162,-430.0,0.00016438,2]
[361710568,1747713033173,-430.0,0.00016438,2]
[361710569,1747713033183,-430.0,0.00016438,2]
[361710570,1747713033193,-430.0,0.00016438,2]
[361710571,1747713033203,-430.0,0.00016438,2]
[361710572,1747713033214,-430.0,0.00016438,2]
[361710573,1747713033225,-430.0,0.00016438,2]
[361710574,1747713033235,-430.0,0.00016438,2]
[361710575,1747713033247,-430.0,0.00016438,2]
[361710576,1747713033257,-430.0,0.00016438,2]
[361710577,1747713033268,-430.0,0.00016438,2]
[361710578,1747713033279,-1380.67,0.00016438,2]
[361710579,1747713033290,-430.0,0.00016438,2]
[361710580,1747713033301,-489.35,0.00016438,2]
[361710581,1747713033312,-414.50125267,0.00016438,2]
[361710582,1747713033323,-430.0,0.00016438,2]
[361710583,1747713033333,-430.0,0.00016438,2]
[361710584,1747713033344,-430.0,0.00016438,2]
[361710585,1747713033355,-430.0,0.00016438,2]
[361710586,1747713033368,-430.0,0.00016438,2]
[361710587,1747713033378,-6515.42,0.00016438,2]
[361710588,1747713033389,-430.0,0.00016438,2]
[361710589,1747713033399,-1165.12,0.00016438,2]
[361710590,1747713033409,-592.31,0.00016438,2]
[361710591,1747713033420,-430.0,0.00016438,2]
[361710592,1747713033429,-430.0,0.00016438,2]
[361710593,1747713033440,-771.17,0.00016438,2]
[361710594,1747713033451,-430.0,0.00016438,2]
[361710595,1747713033461,-1761.38,0.00016438,2]
[361710596,1747713033474,-1084.62,0.00016438,2]
[361710597,1747713033484,-430.0,0.00016438,2]
[361710598,1747713033494,-1036.01,0.00016438,2]
[361710599,1747713033503,-496.81,0.00016438,2]
[361710600,1747713033515,-455.32,0.00016438,2]
[361710601,1747713033526,-430.0,0.00016438,2]
[361710602,1747713033538,-430.0,0.00016438,2]
[361710603,1747713033550,-1192.45,0.00016438,2]
[361710604,1747713033562,-1173.75,0.00016438,2]
[361710605,1747713033572,-1425.12,0.00016438,2]
[361710606,1747713033582,-430.0,0.00016438,2]
[361710607,1747713033602,-1724.93,0.00016438,2]
[361710608,1747713033615,-430.0,0.00016438,2]
[361710609,1747713033626,-3618.67,0.00016438,2]
[361710610,1747713033638,-433.85,0.00016438,2]
[361710611,1747713033649,-430.0,0.00016438,2]
[361710612,1747713033660,-430.0,0.00016438,2]
[361710613,1747713033670,-430.0,0.00016438,2]
[361710614,1747713033681,-430.0,0.00016438,2]
[361710615,1747713033692,-430.0,0.00016438,2]
[361710616,1747713033703,-6252.42,0.00016438,2]
[361710617,1747713033714,-718.03,0.00016438,2]
[361710618,1747713033725,-430.0,0.00016438,2]
[361710619,1747713033736,-399.65184117,0.00016438,2]
[361710620,1747713033747,-761.24,0.00016438,2]
[361710621,1747713033758,-430.0,0.00016438,2]
[361710622,1747713033769,-430.0,0.00016438,2]
[361710623,1747713033779,-430.0,0.00016438,2]
[361710624,1747713033790,-430.0,0.00016438,2]
[361710625,1747713033802,-698.79,0.00016438,2]
[361710626,1747713033814,-1795.12,0.00016438,2]
[361710627,1747713033825,-2218.6,0.00016438,2]
[361710628,1747713033835,-616.55,0.00016438,2]
[361710629,1747713033846,-430.0,0.00016438,2]
[361710630,1747713033856,-430.0,0.00016438,2]
[361710631,1747713033868,-550.33,0.00016438,2]
[361710632,1747713033878,-430.0,0.00016438,2]
[361710633,1747713033888,-434.48,0.00016438,2]